[Event "UZB-ch Men Final 2019"]
[Site "Tashkent"]
[Date "2019.07.05"]
[Round "4.6"]
[White "Iuldachev, Saidali"]
[Black "Sindarov, Javokhir"]
[Result "0-1"]
[ECO "B24"]
[WhiteElo "2451"]
[BlackElo "2479"]
[Annotator "ChessBase"]
[PlyCount "176"]
[EventDate "2019.07.02"]
[EventType "tourn"]
[EventCountry "UZB"]
[SourceTitle "playchess.com"]
[Source "ChessBase"]
[SourceQuality "1"]
[TimeControl "5400+30"]

1. e4 {[%emt 0:00:00]} c5 {[%emt 0:00:00]} 2. Nc3 {[%emt 0:00:24]} Nc6 {[%emt 0:00:00]} 3. Nf3 {[%emt 0:01:55]} e5 {[%emt 0:01:11]} 4. Bc4 {[%emt 0:00:12]} g6 {[%emt 0:00:19]} 5. h4 {[%emt 0:03:58]} h6 {[%emt 0:00:08]} 6. h5 {[%emt 0:00:59]} g5 {[%emt 0:00:07]} 7. Nh2 {[%emt 0:10:20]} d6 {[%emt 0:01:30]} 8. Nf1 {[%emt 0:03:24]} Bg7 {[%emt 0:00:48]} 9. Ne3 {[%emt 0:01:38]} Nge7 {[%emt 0:00:12]} 10. g4 {[%emt 0:03:05]} O-O {[%emt 0:01:22]} 11. d3 {[%emt 0:03:08]} Be6 {[%emt 0:00:30]} 12. Ncd5 {[%emt 0:02:37]} b5 {[%emt 0:10:30]} 13. Bb3 {[%emt 0:01:20]} Nd4 {[%emt 0:07:22]} 14. Nxe7+ {[%emt 0:00:37]} Qxe7 {[%emt 0:00:06]} 15. Bd5 {[%emt 0:00:10]} Bxd5 {[%emt 0:00:57]} 16. Nxd5 {[%emt 0:00:17]} Qb7 {[%emt 0:00:24]} 17. c3 {[%emt 0:09:24]} Ne6 {[%emt 0:00:15]} 18. O-O {[%emt 0:00:11]} Nf4 {[%emt 0:02:23]} 19. Bxf4 {[%emt 0:04:43]} exf4 {[%emt 0:01:11]} 20. Kg2 {[%emt 0:07:31]} a5 {[%emt 0:04:26]} 21. f3 {[%emt 0:04:04]} Kh8 {[%emt 0:00:43]} 22. Rf2 {[%emt 0:00:42]} b4 {[%emt 0:08:35]} 23. Rc1 {[%emt 0:12:27]} Rab8 {[%emt 0:09:55]} 24. d4 {[%emt 0:03:55]} bxc3 {[%emt 0:01:30]} 25. bxc3 {[%emt 0:00:09]} Rfc8 {[%emt 0:00:07]} 26. Rcc2 {[%emt 0:07:06]} a4 {[%emt 0:02:07]} 27. a3 {[%emt 0:07:48]} cxd4 {[%emt 0:09:28]} 28. cxd4 {[%emt 0:00:11]} Qb3 {[%emt 0:00:03]} 29. Qc1 {[%emt 0:06:21]} Rxc2 {[%emt 0:01:45]} 30. Rxc2 {[%emt 0:00:03]} Bxd4 {[%emt 0:02:28]} 31. Rc8+ {[%emt 0:00:44]} Kg7 {[%emt 0:01:33]} 32. Rxb8 {[%emt 0:03:37]} Qxb8 {[%emt 0:00:18]} 33. Nb4 {[%emt 0:00:15]} Qb5 {[%emt 0:00:50]} 34. Qc2 {[%emt 0:01:18]} Be5 {[%emt 0:02:25]} 35. Qd3 {[%emt 0:02:22]} Qc5 {[%emt 0:00:19]} 36. Nd5 {[%emt 0:00:25]} Qc1 {[%emt 0:00:31]} 37. Ne7 {[%emt 0:00:21]} Qb2+ {[%emt 0:00:19]} 38. Kf1 {[%emt 0:00:38]} Qa1+ {[%emt 0:07:40]} 39. Ke2 {[%emt 0:00:01]} Qa2+ {[%emt 0:01:27]} 40. Kd1 {[%emt 0:00:23]} Qa1+ {[%emt 0:06:40]} 41. Ke2 {[%emt 0:00:37]} Bc3 {[%emt 0:02:32]} 42. Nf5+ {[%emt 0:00:12]} Kh7 {[%emt 0:00:03]} 43. Qxd6 {[%emt 0:00:39]} Qe1+ {[%emt 0:00:05]} 44. Kd3 {[%emt 0:00:03]} Bg7 {[%emt 0:00:05]} 45. Qd5 {[%emt 0:01:26]} Qd1+ {[%emt 0:00:26]} 46. Kc4 {[%emt 0:00:04]} Qxf3 {[%emt 0:03:38]} 47. Kb4 {[%emt 0:00:08]} Bf8+ {[%emt 0:00:42]} 48. Kxa4 {[%emt 0:00:13]} Qxa3+ {[%emt 0:00:09]} 49. Kb5 {[%emt 0:00:01]} Qb4+ {[%emt 0:01:20]} 50. Kc6 {[%emt 0:00:15]} Kg8 {[%emt 0:00:35]} 51. e5 {[%emt 0:00:48]} Qb8 {[%emt 0:00:19]} 52. Kd7 {[%emt 0:01:10]} Qa7+ {[%emt 0:00:25]} 53. Kc8 {[%emt 0:00:54]} Qa6+ {[%emt 0:02:47]} 54. Kd7 {[%emt 0:00:09]} Qa4+ {[%emt 0:03:20]} 55. Kd8 {[%emt 0:00:23]} Qa6 {[%emt 0:01:44]} 56. Kd7 {[%emt 0:00:36]} Qa7+ {[%emt 0:00:03]} 57. Kc8 {[%emt 0:00:04]} Qa6+ {[%emt 0:06:10]} 58. Kd7 {[%emt 0:00:05]} Bg7 {[%emt 0:00:16]} 59. Nd6 {[%emt 0:01:40]} Qa7+ {[%emt 0:00:09]} 60. Kd8 {[%emt 0:01:00]} Kf8 {[%emt 0:00:57]} 61. Nf5 {[%emt 0:00:45]} Qb8+ {[%emt 0:00:35]} 62. Kd7 {[%emt 0:00:01]} Qe8+ {[%emt 0:00:22]} 63. Kd6 {[%emt 0:00:23]} Kg8 {[%emt 0:00:22]} 64. e6 {[%emt 0:01:04]} fxe6 {[%emt 0:00:48]} 65. Qxe6+ {[%emt 0:00:03]} Qxe6+ {[%emt 0:00:03]} 66. Kxe6 {[%emt 0:00:02]} f3 {[%emt 0:00:06]} 67. Kd5 {[%emt 0:00:39]} f2 {[%emt 0:00:10]} 68. Ng3 {[%emt 0:00:09]} Kf7 {[%emt 0:00:05]} 69. Nf1 {[%emt 0:01:12]} Bf8 {[%emt 0:00:13]} 70. Ng3 {[%emt 0:00:16]} Ba3 {[%emt 0:00:49]} 71. Ke5 {[%emt 0:01:10]} Ke7 {[%emt 0:02:06]} 72. Kf5 {[%emt 0:00:06]} Kf7 {[%emt 0:01:18]} 73. Nf1 {[%emt 0:00:37]} Bd6 {[%emt 0:00:13]} 74. Ke4 {[%emt 0:00:46]} Ke6 {[%emt 0:00:05]} 75. Kf3 {[%emt 0:00:10]} Ke5 {[%emt 0:00:11]} 76. Ke3 {[%emt 0:00:47]} Bc5+ {[%emt 0:00:47]} 77. Kf3 {[%emt 0:00:03]} Kd5 {[%emt 0:00:26]} 78. Nd2 {[%emt 0:00:28]} Kd4 {[%emt 0:00:15]} 79. Kxf2 {[%emt 0:00:26]} Kd3+ {[%emt 0:00:04]} 80. Ke1 {[%emt 0:00:02]} Bb4 {[%emt 0:00:04]} 81. Kd1 {[%emt 0:00:04]} Ke3 {[%emt 0:00:18]} 82. Nb3 {[%emt 0:01:19]} Kf4 {[%emt 0:00:04]} 83. Nd4 {[%emt 0:00:19]} Kxg4 {[%emt 0:00:04]} 84. Ke2 {[%emt 0:00:06]} Kxh5 {[%emt 0:00:14]} 85. Kf3 {[%emt 0:00:21]} Kg6 {[%emt 0:00:05]} 86. Ne6 {[%emt 0:00:52]} Kf6 {[%emt 0:00:08]} 87. Nf4 {[%emt 0:00:09]} Bd6 {[%emt 0:00:10]} 88. Nh5+ {[%emt 0:01:01]} Kg6 {[%emt 0:00:04]} 0-1

[Event "UZB-ch Men Final 2019"]
[Site "Tashkent"]
[Date "2019.07.06"]
[Round "5.1"]
[White "Khoroshev, Nikita"]
[Black "Iuldachev, Saidali"]
[Result "0-1"]
[ECO "A03"]
[WhiteElo "2414"]
[BlackElo "2451"]
[Annotator "ChessBase"]
[PlyCount "86"]
[EventDate "2019.07.02"]
[EventType "tourn"]
[EventCountry "UZB"]
[SourceTitle "playchess.com"]
[Source "ChessBase"]
[SourceQuality "1"]
[TimeControl "5400+30"]

1. f4 {[%emt 0:00:00]} d5 {[%emt 0:01:01]} 2. Nf3 {[%emt 0:00:02]} Nf6 {[%emt 0:00:37]} 3. e3 {[%emt 0:00:09]} c6 {[%emt 0:05:19]} 4. b3 {[%emt 0:01:19]} Bg4 {[%emt 0:00:11]} 5. Bb2 {[%emt 0:01:08]} Nbd7 {[%emt 0:00:33]} 6. h3 {[%emt 0:05:54]} Bxf3 {[%emt 0:00:28]} 7. Qxf3 {[%emt 0:00:02]} e6 {[%emt 0:06:46]} 8. c4 {[%emt 0:01:17]} Ne4 {[%emt 0:06:44]} 9. Rg1 {[%emt 0:04:43]} Be7 {[%emt 0:23:02]} 10. Nc3 {[%emt 0:14:29]} Bf6 {[%emt 0:01:24]} 11. O-O-O {[%emt 0:00:06]} Ndc5 {[%emt 0:07:56]} 12. Kc2 {[%emt 0:02:06]} Qa5 {[%emt 0:02:57]} 13. a3 {[%emt 0:00:00]} Bxc3 {[%emt 0:00:30]} 14. dxc3 {[%emt 0:00:00]} O-O {[%emt 0:06:59]} 15. Rd4 {[%emt 0:13:55]} Rac8 {[%emt 0:02:33]} 16. Qd1 {[%emt 0:10:13]} b5 {[%emt 0:03:19]} 17. b4 {[%emt 0:08:59]} Qa4+ {[%emt 0:00:42]} 18. Kc1 {[%emt 0:00:13]} Nb3+ {[%emt 0:02:16]} 19. Kb1 {[%emt 0:00:01]} Nxd4 {[%emt 0:01:55]} 20. Qxa4 {[%emt 0:00:06]} bxa4 {[%emt 0:00:17]} 21. cxd4 {[%emt 0:00:05]} dxc4 {[%emt 0:01:15]} 22. Kc2 {[%emt 0:00:33]} Nd6 {[%emt 0:01:14]} 23. Kc3 {[%emt 0:00:55]} a5 {[%emt 0:00:33]} 24. Bxc4 {[%emt 0:00:09]} axb4+ {[%emt 0:05:50]} 25. axb4 {[%emt 0:03:13]} Ra8 {[%emt 0:00:59]} 26. Ba3 {[%emt 0:02:15]} Nb5+ {[%emt 0:00:09]} 27. Kb2 {[%emt 0:00:01]} Rfb8 {[%emt 0:03:07]} 28. Rc1 {[%emt 0:00:07]} Rb6 {[%emt 0:00:13]} 29. Be2 {[%emt 0:00:07]} Rab8 {[%emt 0:00:30]} 30. Rc4 {[%emt 0:00:24]} Nd6 {[%emt 0:04:16]} 31. Rc5 {[%emt 0:00:07]} Nf5 {[%emt 0:00:24]} 32. Rc3 {[%emt 0:00:20]} Ne7 {[%emt 0:00:50]} 33. e4 {[%emt 0:02:17]} f5 {[%emt 0:03:39]} 34. b5 {[%emt 0:00:28]} Kf7 {[%emt 0:00:37]} 35. Bc5 {[%emt 0:01:12]} cxb5 {[%emt 0:02:48]} 36. Bxb6 {[%emt 0:00:17]} Rxb6 {[%emt 0:00:05]} 37. Rc5 {[%emt 0:00:12]} fxe4 {[%emt 0:01:54]} 38. Bxb5 {[%emt 0:00:21]} Nd5 {[%emt 0:01:42]} 39. f5 {[%emt 0:00:10]} e3 {[%emt 0:01:18]} 40. Ka3 {[%emt 0:01:03]} Rxb5 {[%emt 0:01:17]} 41. Rxb5 {[%emt 0:00:01]} e2 {[%emt 0:00:06]} 42. fxe6+ {[%emt 0:01:43]} Kxe6 {[%emt 0:00:05]} 43. Rb1 {[%emt 0:00:02]} Ne3 {[%emt 0:01:27]} 0-1

[Event "UZB-ch Men Final 2019"]
[Site "Tashkent"]
[Date "2019.07.06"]
[Round "5.2"]
[White "Nigmatov, Ortik"]
[Black "Karimov, Ibragim"]
[Result "1/2-1/2"]
[ECO "B28"]
[WhiteElo "2488"]
[BlackElo "2211"]
[Annotator "ChessBase"]
[PlyCount "74"]
[EventDate "2019.07.02"]
[EventType "tourn"]
[EventCountry "UZB"]
[SourceTitle "playchess.com"]
[Source "ChessBase"]
[SourceQuality "1"]
[TimeControl "5400+30"]

1. e4 {[%emt 0:00:00]} c5 {[%emt 0:00:00]} 2. Nf3 {[%emt 0:00:00]} a6 {[%emt 0:00:34]} 3. c4 {[%emt 0:00:25]} d6 {[%emt 0:00:27]} 4. d4 {[%emt 0:00:37]} Bg4 {[%emt 0:00:20]} 5. d5 {[%emt 0:01:34]} e5 {[%emt 0:04:47]} 6. Nc3 {[%emt 0:01:47]} Be7 {[%emt 0:01:11]} 7. Be2 {[%emt 0:01:28]} Nd7 {[%emt 0:09:49]} 8. Be3 {[%emt 0:10:52]} Bxf3 {[%emt 0:02:33]} 9. Bxf3 {[%emt 0:01:07]} Bg5 {[%emt 0:00:17]} 10. Bxg5 {[%emt 0:00:31]} Qxg5 {[%emt 0:00:02]} 11. h4 {[%emt 0:00:06]} Qe7 {[%emt 0:05:25]} 12. g4 {[%emt 0:00:51]} Qd8 {[%emt 0:25:50]} 13. Qd2 {[%emt 0:01:44]} Ne7 {[%emt 0:11:51]} 14. h5 {[%emt 0:00:34]} h6 {[%emt 0:08:11]} 15. g5 {[%emt 0:03:47]} Ng8 {[%emt 0:01:38]} 16. Rg1 {[%emt 0:00:05]} hxg5 {[%emt 0:01:06]} 17. Rxg5 {[%emt 0:06:29]} Qf6 {[%emt 0:00:22]} 18. Ke2 {[%emt 0:01:17]} g6 {[%emt 0:01:21]} 19. Rag1 {[%emt 0:17:57]} Ne7 {[%emt 0:00:10]} 20. a3 {[%emt 0:11:22]} O-O-O {[%emt 0:09:33]} 21. b4 {[%emt 0:02:18]} gxh5 {[%emt 0:04:34]} 22. Bxh5 {[%emt 0:00:46]} Rdg8 {[%emt 0:00:59]} 23. Rxg8+ {[%emt 0:02:00]} Rxg8 {[%emt 0:00:10]} 24. Rxg8+ {[%emt 0:00:20]} Nxg8 {[%emt 0:00:05]} 25. Bg4 {[%emt 0:00:02]} Qh4 {[%emt 0:04:03]} 26. Bxd7+ {[%emt 0:02:53]} Kxd7 {[%emt 0:00:02]} 27. bxc5 {[%emt 0:04:19]} Qg4+ {[%emt 0:00:14]} 28. Kd3 {[%emt 0:00:06]} Qf3+ {[%emt 0:00:05]} 29. Kc2 {[%emt 0:00:03]} dxc5 {[%emt 0:00:08]} 30. Qg5 {[%emt 0:02:01]} Qxf2+ {[%emt 0:03:18]} 31. Kb3 {[%emt 0:00:01]} Nf6 {[%emt 0:01:16]} 32. Qxe5 {[%emt 0:00:47]} Ng4 {[%emt 0:00:53]} 33. Qb8 {[%emt 0:02:03]} Ne3 {[%emt 0:00:09]} 34. Qxb7+ {[%emt 0:00:51]} Kd8 {[%emt 0:00:02]} 35. Qb6+ {[%emt 0:19:59]} Kd7 {[%emt 0:00:19]} 36. Qc6+ {[%emt 0:03:48]} Kd8 {[%emt 0:00:09]} 37. Qb6+ {[%emt 0:01:45]} Kd7 {[%emt 0:00:28]} 1/2-1/2

[Event "UZB-ch Men Final 2019"]
[Site "Tashkent"]
[Date "2019.07.06"]
[Round "5.3"]
[White "Yakubboev, Nodirbek"]
[Black "Saydaliev, Saidakbar"]
[Result "1-0"]
[ECO "A61"]
[WhiteElo "2575"]
[BlackElo "2384"]
[Annotator "ChessBase"]
[PlyCount "53"]
[EventDate "2019.07.02"]
[EventType "tourn"]
[EventCountry "UZB"]
[SourceTitle "playchess.com"]
[Source "ChessBase"]
[SourceQuality "1"]
[TimeControl "5400+30"]

1. d4 {[%emt 0:00:00]} Nf6 {[%emt 0:00:00]} 2. c4 {[%emt 0:00:08]} c5 {[%emt 0:00:45]} 3. d5 {[%emt 0:00:26]} e6 {[%emt 0:00:10]} 4. Nc3 {[%emt 0:00:09]} exd5 {[%emt 0:00:16]} 5. cxd5 {[%emt 0:00:07]} d6 {[%emt 0:00:19]} 6. Nf3 {[%emt 0:00:17]} g6 {[%emt 0:00:41]} 7. Nd2 {[%emt 0:00:14]} Bg7 {[%emt 0:00:16]} 8. Nc4 {[%emt 0:00:07]} O-O {[%emt 0:00:46]} 9. Bf4 {[%emt 0:00:05]} Ne8 {[%emt 0:08:45]} 10. Qd2 {[%emt 0:00:01]} a6 {[%emt 0:13:17]} 11. a4 {[%emt 0:00:02]} f5 {[%emt 0:09:11]} 12. g3 {[%emt 0:00:08]} Qc7 {[%emt 0:04:13]} 13. Bg2 {[%emt 0:00:12]} Nd7 {[%emt 0:00:15]} 14. O-O {[%emt 0:00:06]} Rb8 {[%emt 0:04:35]} 15. a5 {[%emt 0:00:26]} b5 {[%emt 0:03:53]} 16. axb6 {[%emt 0:00:03]} Nxb6 {[%emt 0:00:01]} 17. Na5 {[%emt 0:00:01]} Nf6 {[%emt 0:01:18]} 18. Nc6 {[%emt 0:02:03]} Ra8 {[%emt 0:03:35]} 19. Rfb1 {[%emt 0:14:40]} Re8 {[%emt 0:07:35]} 20. b4 {[%emt 0:01:17]} cxb4 {[%emt 0:01:37]} 21. Rxb4 {[%emt 0:00:29]} Ne4 {[%emt 0:00:06]} 22. Nxe4 {[%emt 0:01:36]} Rxe4 {[%emt 0:04:13]} 23. Rab1 {[%emt 0:06:28]} Rxf4 {[%emt 0:04:41]} 24. gxf4 {[%emt 0:08:17]} Nd7 {[%emt 0:00:13]} 25. Qe3 {[%emt 0:00:30]} h5 {[%emt 0:03:34]} 26. Qe8+ {[%emt 0:02:12]} Kh7 {[%emt 0:00:17]} 27. Qf7 {[%emt 0:00:43]} 1-0

[Event "UZB-ch Men Final 2019"]
[Site "Tashkent"]
[Date "2019.07.06"]
[Round "5.4"]
[White "Vokhidov, Shamsiddin"]
[Black "Rakhimov, Rakhmatjon"]
[Result "1/2-1/2"]
[ECO "B07"]
[WhiteElo "2515"]
[BlackElo "2107"]
[Annotator "ChessBase"]
[PlyCount "136"]
[EventDate "2019.07.02"]
[EventType "tourn"]
[EventCountry "UZB"]
[SourceTitle "playchess.com"]
[Source "ChessBase"]
[SourceQuality "1"]
[TimeControl "5400+30"]

1. e4 {[%emt 0:00:00]} d6 {[%emt 0:00:00]} 2. d4 {[%emt 0:00:00]} Nf6 {[%emt 0:00:20]} 3. Nc3 {[%emt 0:00:00]} g6 {[%emt 0:00:16]} 4. Bg5 {[%emt 0:00:03]} Bg7 {[%emt 0:00:32]} 5. Qd2 {[%emt 0:00:07]} O-O {[%emt 0:01:54]} 6. f4 {[%emt 0:05:29]} c5 {[%emt 0:02:43]} 7. dxc5 {[%emt 0:04:32]} dxc5 {[%emt 0:00:52]} 8. Bd3 {[%emt 0:17:59]} Nc6 {[%emt 0:07:35]} 9. Nge2 {[%emt 0:00:41]} a6 {[%emt 0:03:14]} 10. O-O-O {[%emt 0:05:32]} Ng4 {[%emt 0:11:24]} 11. Ng3 {[%emt 0:09:28]} Bd4 {[%emt 0:01:13]} 12. Rhe1 {[%emt 0:06:08]} Nf2 {[%emt 0:02:12]} 13. e5 {[%emt 0:00:09]} Qa5 {[%emt 0:05:01]} 14. Nce4 {[%emt 0:04:13]} Nxd1 {[%emt 0:02:24]} 15. Qxa5 {[%emt 0:02:01]} Nxa5 {[%emt 0:03:23]} 16. Kxd1 {[%emt 0:03:34]} c4 {[%emt 0:04:23]} 17. c3 {[%emt 0:02:45]} f6 {[%emt 0:00:37]} 18. Bh6 {[%emt 0:01:30]} Rd8 {[%emt 0:01:40]} 19. cxd4 {[%emt 0:00:21]} f5 {[%emt 0:08:09]} 20. Bc2 {[%emt 0:04:40]} fxe4 {[%emt 0:00:11]} 21. Bxe4 {[%emt 0:00:38]} Rxd4+ {[%emt 0:00:59]} 22. Kc1 {[%emt 0:00:01]} Bd7 {[%emt 0:02:07]} 23. Bc2 {[%emt 0:00:54]} c3 {[%emt 0:08:19]} 24. b3 {[%emt 0:02:29]} Bb5 {[%emt 0:01:08]} 25. Re3 {[%emt 0:02:38]} Nc6 {[%emt 0:03:00]} 26. a4 {[%emt 0:01:27]} Nb4 {[%emt 0:01:03]} 27. axb5 {[%emt 0:00:12]} axb5 {[%emt 0:03:37]} 28. Rxc3 {[%emt 0:01:16]} Na2+ {[%emt 0:07:51]} 29. Kb2 {[%emt 0:00:05]} Nxc3 {[%emt 0:00:09]} 30. Kxc3 {[%emt 0:00:03]} Rad8 {[%emt 0:00:20]} 31. Nf1 {[%emt 0:10:11]} b4+ {[%emt 0:03:44]} 32. Kb2 {[%emt 0:00:02]} R4d5 {[%emt 0:02:05]} 33. Bg5 {[%emt 0:01:43]} Kf7 {[%emt 0:00:50]} 34. g4 {[%emt 0:01:14]} Rc8 {[%emt 0:02:15]} 35. Bh4 {[%emt 0:00:55]} Rd4 {[%emt 0:01:33]} 36. f5 {[%emt 0:02:10]} Rxg4 {[%emt 0:05:48]} 37. e6+ {[%emt 0:00:14]} Kf8 {[%emt 0:00:39]} 38. Bg3 {[%emt 0:00:05]} g5 {[%emt 0:03:33]} 39. Ne3 {[%emt 0:02:05]} Rd4 {[%emt 0:00:06]} 40. Nc4 {[%emt 0:01:00]} b5 {[%emt 0:00:32]} 41. Nb6 {[%emt 0:00:11]} Rc6 {[%emt 0:00:48]} 42. Nd7+ {[%emt 0:00:29]} Ke8 {[%emt 0:00:28]} 43. Ne5 {[%emt 0:00:57]} Rc3 {[%emt 0:00:13]} 44. Be1 {[%emt 0:00:04]} Rd5 {[%emt 0:00:23]} 45. Ng4 {[%emt 0:01:23]} h5 {[%emt 0:00:29]} 46. Nh6 {[%emt 0:00:17]} Rh3 {[%emt 0:00:46]} 47. f6 {[%emt 0:02:09]} Rxh2 {[%emt 0:00:46]} 48. Ng8 {[%emt 0:01:11]} Re5 {[%emt 0:00:13]} 49. Bg3 {[%emt 0:00:50]} Rxc2+ {[%emt 0:00:13]} 50. Kxc2 {[%emt 0:00:02]} Rxe6 {[%emt 0:00:04]} 51. Nxe7 {[%emt 0:00:09]} h4 {[%emt 0:00:26]} 52. Bb8 {[%emt 0:00:15]} Rb6 {[%emt 0:00:31]} 53. Be5 {[%emt 0:00:11]} Re6 {[%emt 0:00:20]} 54. Ng6 {[%emt 0:00:36]} h3 {[%emt 0:00:40]} 55. Kd3 {[%emt 0:00:45]} Rxe5 {[%emt 0:00:29]} 56. f7+ {[%emt 0:00:11]} Kxf7 {[%emt 0:00:10]} 57. Nxe5+ {[%emt 0:00:04]} Ke6 {[%emt 0:00:08]} 58. Ng4 {[%emt 0:00:44]} Kf5 {[%emt 0:00:10]} 59. Nf2 {[%emt 0:00:06]} g4 {[%emt 0:00:39]} 60. Ke3 {[%emt 0:00:01]} Kg5 {[%emt 0:01:15]} 61. Ne4+ {[%emt 0:00:55]} Kf5 {[%emt 0:00:27]} 62. Nf2 {[%emt 0:00:34]} Kg5 {[%emt 0:00:10]} 63. Ne4+ {[%emt 0:01:21]} Kf5 {[%emt 0:00:06]} 64. Ng3+ {[%emt 0:01:27]} Ke5 {[%emt 0:00:28]} 65. Ne2 {[%emt 0:00:51]} h2 {[%emt 0:00:47]} 66. Ng3 {[%emt 0:00:04]} Kd5 {[%emt 0:00:05]} 67. Kd3 {[%emt 0:01:08]} Ke5 {[%emt 0:00:08]} 68. Ke3 {[%emt 0:00:04]} Kd5 {[%emt 0:00:07] Ke4+ Ke5+} 1/2-1/2

[Event "UZB-ch Men Final 2019"]
[Site "Tashkent"]
[Date "2019.07.06"]
[Round "5.5"]
[White "Abdusattorov, Nodirbek"]
[Black "Abdisalimov, Abdimalik"]
[Result "1-0"]
[ECO "A33"]
[WhiteElo "2598"]
[BlackElo "2391"]
[Annotator "ChessBase"]
[PlyCount "75"]
[EventDate "2019.07.02"]
[EventType "tourn"]
[EventCountry "UZB"]
[SourceTitle "playchess.com"]
[Source "ChessBase"]
[SourceQuality "1"]
[TimeControl "5400+30"]

1. d4 {[%emt 0:00:00]} Nf6 {[%emt 0:00:00]} 2. c4 {[%emt 0:00:04]} e6 {[%emt 0:00:00]} 3. Nf3 {[%emt 0:00:23]} c5 {[%emt 0:00:09]} 4. Nc3 {[%emt 0:00:30]} cxd4 {[%emt 0:11:19]} 5. Nxd4 {[%emt 0:00:14]} Nc6 {[%emt 0:02:25]} 6. Ndb5 {[%emt 0:01:21]} d5 {[%emt 0:00:26]} 7. Bf4 {[%emt 0:20:09]} d4 {[%emt 0:07:36]} 8. Nc7+ {[%emt 0:02:49]} Ke7 {[%emt 0:00:12]} 9. Qa4 {[%emt 0:03:46]} Nh5 {[%emt 0:12:58]} 10. Nxa8 {[%emt 0:15:05]} Nxf4 {[%emt 0:00:08]} 11. Nb5 {[%emt 0:00:26]} Bd7 {[%emt 0:14:20]} 12. Qa3+ {[%emt 0:04:23]} Kf6 {[%emt 0:01:41]} 13. Qf3 {[%emt 0:01:53]} Bb4+ {[%emt 0:11:46]} 14. Kd1 {[%emt 0:00:11]} g5 {[%emt 0:00:13]} 15. g3 {[%emt 0:08:33]} Ne5 {[%emt 0:03:07]} 16. Qb3 {[%emt 0:00:15]} Bxb5 {[%emt 0:01:34]} 17. gxf4 {[%emt 0:01:42]} gxf4 {[%emt 0:00:07]} 18. Qxb4 {[%emt 0:01:21]} Bc6 {[%emt 0:02:11]} 19. Rg1 {[%emt 0:01:40]} d3 {[%emt 0:01:44]} 20. Qc3 {[%emt 0:10:09]} dxe2+ {[%emt 0:05:39]} 21. Kxe2 {[%emt 0:00:06]} Qd6 {[%emt 0:00:52]} 22. Ke1 {[%emt 0:00:59]} Rd8 {[%emt 0:02:31]} 23. Be2 {[%emt 0:02:29]} Rxa8 {[%emt 0:00:33]} 24. Rd1 {[%emt 0:00:39]} Qf8 {[%emt 0:00:19]} 25. Rg4 {[%emt 0:03:08]} Qh6 {[%emt 0:06:10]} 26. h4 {[%emt 0:01:53]} Be4 {[%emt 0:02:35]} 27. Rg5 {[%emt 0:01:50]} Bf5 {[%emt 0:00:08]} 28. Rd6 {[%emt 0:01:51]} Qf8 29. Qd4 {[%emt 0:01:40]} h6 {[%emt 0:02:20]} 30. Rg1 {[%emt 0:01:12]} Rc8 {[%emt 0:03:01]} 31. c5 {[%emt 0:00:36]} b6 {[%emt 0:00:26]} 32. c6 {[%emt 0:01:34]} f3 {[%emt 0:05:16]} 33. h5 {[%emt 0:00:32]} Be4 {[%emt 0:00:45]} 34. Bd3 {[%emt 0:01:15]} Qxd6 {[%emt 0:03:24]} 35. Qxd6 {[%emt 0:00:07]} Nxd3+ {[%emt 0:00:03]} 36. Kd2 {[%emt 0:01:20]} Ne5 {[%emt 0:00:41]} 37. Qd4 {[%emt 0:00:49]} Kf5 {[%emt 0:00:09]} 38. Re1 {[%emt 0:00:05]} 1-0

[Event "UZB-ch Men Final 2019"]
[Site "Tashkent"]
[Date "2019.07.06"]
[Round "5.6"]
[White "Sabirov, Asilbek"]
[Black "Dzhumaev, Marat"]
[Result "1-0"]
[ECO "A48"]
[WhiteElo "2147"]
[BlackElo "2439"]
[Annotator "NA"]
[PlyCount "129"]
[EventDate "2019.07.02"]
[EventType "tourn"]
[EventCountry "UZB"]
[SourceTitle "playchess.com"]
[Source "ChessBase"]
[SourceQuality "1"]
[TimeControl "5400+30"]

1. d4 {[%emt 0:00:00]} Nf6 {[%emt 0:01:16]} 2. Nf3 {[%emt 0:00:11]} g6 {[%emt 0:01:35]} 3. Bf4 {[%emt 0:00:12]} Bg7 {[%emt 0:00:30]} 4. e3 {[%emt 0:00:03]} O-O {[%emt 0:00:27]} 5. h3 {[%emt 0:00:08]} d6 {[%emt 0:01:03]} 6. Be2 {[%emt 0:00:08]} b6 {[%emt 0:00:37]} 7. O-O {[%emt 0:00:14]} Bb7 {[%emt 0:00:07]} 8. a4 {[%emt 0:00:48]} a6 {[%emt 0:00:25]} 9. c3 {[%emt 0:00:15]} Nbd7 {[%emt 0:00:23]} 10. Nbd2 {[%emt 0:00:36]} e6 {[%emt 0:01:21]} 11. a5 {[%emt 0:05:41]} b5 {[%emt 0:00:33]} 12. c4 {[%emt 0:00:52]} bxc4 {[%emt 0:00:50]} 13. Bxc4 {[%emt 0:01:29]} Qe7 {[%emt 0:00:38]} 14. Bh2 {[%emt 0:06:58]} Ne4 {[%emt 0:05:22]} 15. Nxe4 {[%emt 0:03:20]} Bxe4 {[%emt 0:00:11]} 16. Qe2 {[%emt 0:02:05]} c5 {[%emt 0:08:04]} 17. Rfd1 {[%emt 0:03:15]} Bxf3 {[%emt 0:18:51]} 18. gxf3 {[%emt 0:07:22]} cxd4 {[%emt 0:00:15]} 19. exd4 {[%emt 0:01:20]} Rfb8 {[%emt 0:00:28]} 20. Bxa6 {[%emt 0:03:18]} Rb4 {[%emt 0:00:22]} 21. Bc4 {[%emt 0:01:32]} d5 {[%emt 0:00:28]} 22. Bb5 {[%emt 0:01:25]} Bxd4 {[%emt 0:09:23]} 23. Rxd4 {[%emt 0:04:12]} Rxd4 {[%emt 0:00:32]} 24. a6 {[%emt 0:08:56]} Rb4 {[%emt 0:04:18]} 25. Bxd7 {[%emt 0:24:44]} Qxd7 {[%emt 0:00:25]} 26. Be5 {[%emt 0:01:01]} d4 {[%emt 0:17:09]} 27. Qd2 {[%emt 0:04:10]} Rb5 {[%emt 0:01:44]} 28. Qxd4 {[%emt 0:07:51]} Qxd4 {[%emt 0:01:32]} 29. Bxd4 {[%emt 0:00:01]} e5 {[%emt 0:00:21]} 30. Be3 {[%emt 0:01:34]} Rxb2 {[%emt 0:06:22]} 31. f4 {[%emt 0:01:03]} e4 {[%emt 0:06:02]} 32. a7 {[%emt 0:00:27]} Rb7 {[%emt 0:00:41]} 33. Ra4 {[%emt 0:00:41]} f5 {[%emt 0:00:15]} 34. Kg2 {[%emt 0:00:27]} Kf7 {[%emt 0:00:09]} 35. Kg3 {[%emt 0:00:46]} Ke6 {[%emt 0:01:52]} 36. Kh4 {[%emt 0:01:12]} Rb1 {[%emt 0:02:04]} 37. Ra6+ {[%emt 0:01:29]} Kf7 {[%emt 0:02:04]} 38. Rc6 {[%emt 0:01:11]} Rb7 {[%emt 0:01:10]} 39. Ra6 {[%emt 0:00:12]} Kg7 {[%emt 0:00:40]} 40. Bd4+ {[%emt 0:00:16]} Kh6 {[%emt 0:01:06]} 41. Be3 {[%emt 0:01:09]} Rd7 {[%emt 0:00:19]} 42. Ra5 {[%emt 0:01:43]} Kg7 {[%emt 0:02:08]} 43. Ra1 {[%emt 0:01:02]} Kf7 {[%emt 0:00:24]} 44. Ra6 {[%emt 0:00:53]} Re7 {[%emt 0:00:32]} 45. Ra5 {[%emt 0:00:19]} Rd7 {[%emt 0:01:09]} 46. Ra1 {[%emt 0:00:16]} h6 {[%emt 0:02:21]} 47. Ra5 {[%emt 0:00:20]} Ke6 {[%emt 0:00:43]} 48. Ra6+ {[%emt 0:01:19]} Rd6 {[%emt 0:00:06]} 49. Ra5 {[%emt 0:00:07]} Kf6 {[%emt 0:00:21]} 50. Ra1 {[%emt 0:02:53]} g5+ {[%emt 0:01:25]} 51. fxg5+ {[%emt 0:00:09]} hxg5+ {[%emt 0:00:06]} 52. Bxg5+ {[%emt 0:00:04]} Ke5 {[%emt 0:00:11]} 53. Be3 {[%emt 0:02:43]} Rg6 {[%emt 0:03:51]} 54. Ra5+ {[%emt 0:00:06]} Ke6 {[%emt 0:00:04]} 55. Ra6+ {[%emt 0:00:25]} Kf7 {[%emt 0:00:06]} 56. Rxg6 {[%emt 0:00:04]} Kxg6 {[%emt 0:00:04]} 57. Kg3 {[%emt 0:00:07]} Kf6 {[%emt 0:00:28]} 58. Kf4 {[%emt 0:00:08]} Ke6 {[%emt 0:00:18]} 59. h4 {[%emt 0:00:05]} Rg8 {[%emt 0:00:12]} 60. Bb6 {[%emt 0:00:24]} Ra8 {[%emt 0:02:33]} 61. h5 {[%emt 0:00:19]} Kf6 {[%emt 0:01:01]} 62. Bd4+ {[%emt 0:00:10]} Ke6 {[%emt 0:00:18]} 63. h6 {[%emt 0:00:28]} Kd5 {[%emt 0:00:04]} 64. Be3 {[%emt 0:00:08]} Ke6 {[%emt 0:00:51]} 65. h7 {[%emt 0:00:08]} 1-0